bitfinex-derivatives/quotes_BNBF0:USTF0_20250524
["timestamp","ask_amount","ask_price","bid_price","bid_amount"]
[1748054882778,1.57940834,663.86,663.38,2.46677376]
[1748054882978,1.57940834,663.85,663.38,2.46677376]
[1748054883176,1.57940834,663.84,663.38,2.46677376]
[1748054883376,1.57940834,663.83,663.4,1.04277376]
[1748054883576,1.57940834,663.82,663.4,1.04277376]
[1748054883777,1.57940834,663.81,663.4,1.04277376]
[1748054883975,1.09098618,663.8,663.4,1.04277376]
[1748054884182,1.09098618,663.79,663.4,1.04277376]
[1748054884380,1.09098618,663.78,663.4,1.04277376]
[1748054884581,1.09098618,663.77,663.4,1.04277376]
[1748054884782,1.50246428,663.91,663.4,1.04277376]
[1748054884982,1.57947821,663.9,663.4,1.04277376]
[1748054885182,1.57947821,663.89,663.4,1.04277376]
[1748054885379,1.57948463,663.88,663.4,1.04277376]
[1748054885680,1.57948463,663.87,663.4,1.04277376]
[1748054885878,1.57948463,663.86,663.4,1.04277376]
[1748054886082,1.57948463,663.85,663.4,1.04277376]
[1748054886277,1.57948463,663.84,663.4,1.04277376]
[1748054886481,1.57948463,663.83,663.4,1.04277376]
[1748054886682,1.57948463,663.82,663.4,1.04277376]
[1748054886977,1.57948463,663.81,663.4,1.04277376]
[1748054887178,1.09101295,663.8,663.4,1.04277376]
[1748054887377,1.09101295,663.79,663.4,1.04277376]
[1748054887583,1.09101295,663.78,663.4,1.04277376]
[1748054887778,1.09101295,663.77,663.4,1.04277376]
[1748054887983,1.50246428,663.92,663.4,1.04277376]
[1748054888180,1.57951609,663.91,663.4,1.04277376]
[1748054888385,1.57951609,663.9,663.4,1.04277376]
[1748054888587,1.57951609,663.89,663.4,1.04277376]
[1748054888786,1.57951609,663.88,663.4,1.04277376]
[1748054888987,1.57951538,663.87,663.4,1.04277376]
[1748054889285,1.57951538,663.86,663.4,1.04277376]
[1748054889586,1.57951538,663.85,663.4,1.04277376]
[1748054889781,1.57951538,663.84,663.4,1.04277376]
[1748054889987,1.57951538,663.83,663.4,1.04277376]
[1748054890188,1.57951538,663.82,663.4,1.04277376]
[1748054890388,1.57951538,663.81,663.4,1.04277376]
[1748054890590,1.09104382,663.8,663.4,1.04277376]
[1748054890889,1.09104086,663.79,663.4,1.04277376]
[1748054891089,1.09104086,663.78,663.4,1.04277376]
[1748054891389,1.09104086,663.77,663.4,1.04277376]
[1748054891585,1.50246428,663.92,663.4,1.04277376]
[1748054891790,1.57950684,663.91,663.4,1.04277376]
[1748054891986,1.57950684,663.9,663.4,1.04277376]
[1748054892186,1.57950684,663.89,663.4,1.04277376]
[1748054892484,1.57950684,663.88,663.4,1.04277376]
[1748054892684,1.57950684,663.87,663.4,1.04277376]
[1748054892988,1.57950684,663.86,663.41,1.089]
[1748054893284,1.57950684,663.85,663.41,1.089]
[1748054893490,1.57950684,663.84,663.41,1.089]
[1748054893688,1.57950684,663.83,663.41,1.089]
[1748054893889,1.57950684,663.82,663.41,1.089]
[1748054894190,1.57950684,663.81,663.41,1.089]
[1748054894385,1.09103806,663.8,663.41,1.089]
[1748054894584,1.09103806,663.79,663.41,1.089]
[1748054894788,1.09103806,663.78,663.41,1.089]
[1748054895085,1.09103806,663.77,663.41,1.089]
[1748054895289,1.50246428,663.91,663.41,1.089]
[1748054895585,3.08194084,663.9,663.41,1.089]
[1748054895790,1.57947656,663.89,663.41,1.089]
[1748054895991,1.57947656,663.88,663.41,1.089]
[1748054896191,1.57947656,663.87,663.41,1.089]
[1748054896391,1.57947656,663.86,663.41,1.089]
[1748054896593,1.57947656,663.85,663.41,1.089]
[1748054896789,1.57947656,663.84,663.41,1.089]
[1748054896993,1.57947656,663.83,663.41,1.089]
[1748054897188,1.57947656,663.82,663.41,1.089]
[1748054897389,1.57947656,663.81,663.41,1.089]
[1748054897692,1.09100703,663.8,663.41,1.089]
[1748054897890,1.09100703,663.79,663.41,1.089]
[1748054898090,1.09102531,663.78,663.41,2.13177376]
[1748054898290,1.09102531,663.77,663.41,2.13177376]
[1748054898492,1.50246428,663.9,663.41,2.13177376]
[1748054898692,1.57951437,663.89,663.41,2.13177376]
[1748054898891,1.57951437,663.88,663.41,2.13177376]
[1748054899093,1.57951437,663.87,663.41,2.13177376]
[1748054899293,1.57951437,663.86,663.41,2.13177376]
[1748054899494,1.57951437,663.85,663.41,2.13177376]
[1748054899796,1.57952029,663.84,663.41,2.13177376]
[1748054899990,1.57952029,663.83,663.41,2.13177376]
[1748054900189,1.57952029,663.82,663.41,2.13177376]
[1748054900390,1.57952029,663.81,663.41,2.13177376]
[1748054900594,1.09103722,663.8,663.41,2.13177376]
[1748054900791,1.09103722,663.79,663.41,2.13177376]
[1748054900996,1.09103722,663.78,663.41,2.13177376]
[1748054901197,1.09103722,663.77,663.41,1.089]
[1748054901398,1.50246428,663.96,663.41,1.089]
[1748054901598,1.57956309,663.95,663.41,1.089]
[1748054901795,1.57956309,663.94,663.41,1.089]
[1748054901996,1.57956309,663.93,663.41,1.089]
[1748054902298,1.50246428,663.96,663.41,1.089]
[1748054902299,1.57956309,663.92,663.41,1.089]
[1748054902498,1.57956659,663.91,663.41,1.089]
[1748054902693,1.57956659,663.9,663.41,1.089]
[1748054902895,1.57956659,663.89,663.41,1.089]
[1748054903097,1.57956659,663.88,663.41,1.089]
[1748054903392,1.57956659,663.87,663.41,1.089]
[1748054903598,1.57957492,663.86,663.41,1.089]
[1748054903797,1.57957492,663.85,663.41,1.089]
[1748054903999,1.57957492,663.84,663.41,1.089]
[1748054904199,1.57957492,663.83,663.41,1.089]
[1748054904398,1.57957492,663.82,663.41,1.089]
[1748054904599,1.57957492,663.81,663.41,1.089]
[1748054904899,1.09108023,663.8,663.41,1.089]
[1748054905198,1.09108023,663.79,663.41,1.089]
[1748054905495,1.09108023,663.78,663.41,1.089]
[1748054905700,1.09108023,663.77,663.41,1.089]
[1748054905901,1.50246428,663.97,663.41,1.089]
[1748054906200,1.57961926,663.96,663.41,1.089]
[1748054906401,1.57961926,663.95,663.41,1.089]
[1748054906601,1.57961926,663.94,663.41,1.089]
[1748054906802,1.57961926,663.93,663.41,1.089]
[1748054906998,1.57961926,663.92,663.41,1.089]
[1748054907202,1.57961926,663.91,663.41,1.089]
[1748054907399,1.57961926,663.9,663.41,1.089]
[1748054907600,1.57961926,663.89,663.41,1.089]
[1748054907901,1.57961926,663.88,663.41,1.089]
[1748054908096,1.57961926,663.88,663.37,1.04277376]
[1748054908097,1.57961926,663.87,663.37,1.04277376]
[1748054908300,1.57961926,663.86,663.37,1.04277376]
[1748054908498,1.57961926,663.85,663.37,1.04277376]
[1748054908705,1.57961926,663.84,663.37,1.04277376]
[1748054908902,1.57961926,663.83,663.37,1.04277376]
[1748054909099,1.57964237,663.82,663.37,1.04277376]
[1748054909305,1.57964237,663.81,663.37,1.04277376]
[1748054909505,1.09111566,663.8,663.37,1.04277376]
[1748054909707,1.09111566,663.79,663.37,1.04277376]
[1748054909900,1.09111566,663.78,663.37,1.04277376]
[1748054910103,1.09111566,663.77,663.37,1.04277376]
[1748054910302,1.50246428,663.97,663.37,1.04277376]
[1748054910504,1.57978642,663.96,663.38,1.343]
[1748054910798,1.57978866,663.95,663.38,1.343]
[1748054911002,1.57978866,663.94,663.38,1.343]
[1748054911204,1.57978866,663.93,663.38,1.343]
[1748054911404,1.57978866,663.92,663.38,1.343]
[1748054911703,1.57978866,663.91,663.38,1.343]
[1748054911900,1.57978866,663.9,663.4,1.04277376]
[1748054912105,1.57978866,663.89,663.4,1.04277376]
[1748054912305,1.57978866,663.88,663.4,1.04277376]
[1748054912501,1.57978866,663.87,663.4,1.04277376]
[1748054912699,1.57984773,663.86,663.4,1.04277376]
[1748054912906,1.57984773,663.85,663.4,1.04277376]
[1748054913106,1.57984773,663.84,663.4,1.04277376]
[1748054913402,1.57984773,663.83,663.4,1.04277376]
[1748054913603,1.57984773,663.82,663.4,1.04277376]
[1748054913808,1.57984773,663.81,663.4,1.04277376]
[1748054914107,1.09123803,663.8,663.4,1.04277376]
[1748054914305,1.09123803,663.79,663.4,1.04277376]
[1748054914507,1.09132459,663.78,663.41,1.04277376]
[1748054914702,1.09132459,663.77,663.41,1.04277376]
[1748054914902,1.50246428,663.91,663.41,1.04277376]
[1748054915104,1.57969899,663.9,663.41,1.04277376]
[1748054915302,1.57969899,663.89,663.41,1.04277376]
[1748054915507,1.57969899,663.88,663.41,1.04277376]
[1748054915706,1.57969899,663.87,663.41,1.04277376]
[1748054915905,1.57969899,663.86,663.41,1.04277376]
[1748054916105,1.57969899,663.85,663.41,1.04277376]
[1748054916405,1.57968512,663.84,663.41,1.04277376]
[1748054916605,1.57968512,663.83,663.41,1.04277376]
[1748054916805,1.57968512,663.82,663.41,1.04277376]
[1748054917003,1.57968512,663.81,663.41,1.04277376]
[1748054917203,1.09130401,663.8,663.41,1.04277376]
[1748054917407,1.09130401,663.79,663.41,1.04277376]
[1748054917611,1.09130401,663.78,663.41,1.04277376]
[1748054917805,1.09130401,663.77,663.41,1.04277376]
[1748054918009,1.50246428,663.92,663.41,1.04277376]
[1748054918210,1.57972145,663.91,663.41,1.04277376]
[1748054918407,1.57972145,663.9,663.41,1.04277376]
[1748054918607,1.57972145,663.89,663.41,1.04277376]
[1748054918809,1.57972145,663.88,663.41,1.04277376]
[1748054919010,1.57972145,663.87,663.41,1.04277376]
[1748054919209,1.57972145,663.86,663.41,1.04277376]
[1748054919509,1.57972145,663.85,663.41,1.04277376]
[1748054919709,1.57972145,663.84,663.41,1.04277376]
[1748054919909,1.57972145,663.83,663.41,1.04277376]
[1748054920110,1.57978202,663.82,663.41,1.04277376]
[1748054920410,1.57978202,663.81,663.41,1.04277376]
[1748054920610,1.09138976,663.8,663.41,1.04277376]
[1748054920810,1.09138976,663.79,663.41,1.04277376]
[1748054921010,1.09138976,663.78,663.41,1.04277376]
[1748054921205,1.09138976,663.77,663.41,1.04277376]
[1748054921410,1.09142008,663.76,663.41,1.04277376]
[1748054921706,1.50246428,663.91,663.41,1.04277376]
[1748054921909,1.5798485,663.9,663.41,1.04277376]
[1748054922108,1.5798485,663.89,663.41,1.04277376]
[1748054922310,1.5798485,663.88,663.41,1.04277376]
[1748054922510,1.5798485,663.87,663.41,1.04277376]
[1748054922710,1.5798485,663.86,663.41,1.04277376]
[1748054922911,1.57986732,663.85,663.41,1.04277376]
[1748054923106,1.57986732,663.84,663.41,1.04277376]
[1748054923306,1.57986732,663.83,663.41,1.04277376]
[1748054923611,1.57991477,663.82,663.41,1.04277376]
[1748054923811,1.57991477,663.81,663.4,1.04277376]
[1748054924010,1.57991477,663.8,663.4,1.04277376]
[1748054924211,1.09147247,663.79,663.4,1.04277376]
[1748054924410,1.09147247,663.78,663.4,1.04277376]
[1748054924706,1.09147247,663.77,663.4,1.04277376]
[1748054924909,1.09147247,663.76,663.4,1.04277376]
[1748054925108,1.50246428,663.94,663.4,1.04277376]
[1748054925308,1.5799164,663.93,663.4,1.04277376]
[1748054925510,1.57991511,663.92,663.4,1.04277376]
[1748054925706,1.57991511,663.91,663.4,1.04277376]
[1748054925906,1.57991511,663.9,663.4,1.04277376]
[1748054926110,1.57991511,663.89,663.4,1.04277376]
[1748054926306,1.57991511,663.88,663.4,1.04277376]
[1748054926611,1.57991511,663.87,663.4,1.04277376]
[1748054926806,1.57991511,663.86,663.4,1.04277376]
[1748054927011,1.57991511,663.85,663.4,1.04277376]
[1748054927208,1.57991511,663.84,663.4,1.04277376]
[1748054927408,1.57991511,663.83,663.4,1.04277376]
[1748054927607,1.57991511,663.82,663.4,1.04277376]
[1748054927806,1.57991511,663.81,663.4,1.04277376]
[1748054928010,1.57991511,663.8,663.4,1.04277376]
[1748054928209,1.09147264,663.79,663.4,1.04277376]
[1748054928411,1.09147264,663.78,663.4,1.04277376]
[1748054928616,1.09142643,663.77,663.4,1.04277376]
[1748054928816,1.50246428,663.93,663.4,1.04277376]
[1748054929015,1.57984554,663.92,663.4,1.04277376]
[1748054929212,1.57984554,663.91,663.4,1.04277376]
[1748054929409,1.57984554,663.9,663.4,1.04277376]
[1748054929609,1.57984554,663.89,663.4,1.04277376]
[1748054929812,1.57984554,663.88,663.4,1.04277376]
[1748054930011,1.57984554,663.87,663.4,1.04277376]
[1748054930211,1.57984554,663.86,663.4,1.04277376]
[1748054930415,1.57984554,663.85,663.4,1.04277376]
[1748054930714,1.57984554,663.84,663.4,1.04277376]
[1748054930914,1.57959275,663.83,663.4,1.04277376]
[1748054931115,1.57959275,663.82,663.4,1.04277376]
[1748054931311,1.57959275,663.81,663.4,1.04277376]
[1748054931512,1.09139294,663.8,663.4,1.04277376]
[1748054931713,1.09139294,663.79,663.4,1.04277376]
[1748054932015,1.09139294,663.78,663.4,1.04277376]
[1748054932217,1.09139294,663.77,663.4,1.04277376]
[1748054932417,1.50246428,663.94,663.4,1.04277376]
[1748054932617,1.57958128,663.93,663.4,1.04277376]
[1748054932813,1.57958128,663.92,663.4,1.04277376]
[1748054933019,1.57958128,663.91,663.4,1.04277376]
[1748054933219,1.57958128,663.9,663.4,1.04277376]
[1748054933422,1.57958128,663.89,663.4,1.04277376]
[1748054933624,1.57958128,663.88,663.4,1.04277376]
[1748054933921,1.57958128,663.87,663.4,1.04277376]
[1748054934122,1.57958128,663.86,663.4,1.04277376]
[1748054934319,1.57958128,663.85,663.4,1.04277376]
[1748054934524,1.57957482,663.84,663.4,1.04277376]
[1748054934724,1.57957482,663.83,663.4,1.04277376]
[1748054934919,1.57957482,663.82,663.4,1.04277376]
[1748054935123,1.57957482,663.81,663.4,1.04277376]
[1748054935321,1.09138521,663.8,663.4,1.04277376]
[1748054935523,1.09138521,663.79,663.4,1.04277376]
[1748054935724,1.09138521,663.78,663.4,1.04277376]
[1748054936024,1.50246428,663.94,663.4,1.04277376]
[1748054936324,1.57953528,663.93,663.4,1.04277376]
[1748054936524,1.57953528,663.92,663.4,1.04277376]
[1748054936725,1.57953528,663.91,663.4,1.04277376]
[1748054936924,1.57953528,663.9,663.4,1.04277376]
[1748054937124,1.57953528,663.89,663.4,1.04277376]
[1748054937325,1.57953528,663.88,663.4,1.04277376]
[1748054937625,1.57953528,663.87,663.39,1.04277376]
[1748054937825,1.57953528,663.86,663.39,1.04277376]
[1748054938124,1.57953528,663.85,663.39,1.04277376]
[1748054938322,1.57953528,663.84,663.39,1.04277376]
[1748054938522,1.57953528,663.83,663.39,1.04277376]
[1748054938726,1.80366456,664.01,663.39,1.04277376]
[1748054938727,1.0913546,663.82,663.39,1.04277376]
[1748054939020,1.0913546,663.81,663.39,1.04277376]
[1748054939222,1.0913546,663.8,663.39,1.04277376]
[1748054939424,1.0913546,663.79,663.39,1.04277376]
[1748054939620,1.80366456,664.01,663.39,1.04277376]
[1748054939820,1.57935445,664.0,663.39,1.04277376]
[1748054940021,1.57935445,663.99,663.39,1.04277376]
[1748054940225,1.57935445,663.98,663.39,1.04277376]
[1748054940426,1.57935445,663.97,663.39,1.04277376]
[1748054940626,1.57935445,663.96,663.38,2.38577376]
[1748054940821,1.57935445,663.95,663.38,2.38577376]
[1748054941022,1.57935445,663.94,663.38,2.38577376]
[1748054941222,1.57935445,663.93,663.38,2.38577376]
[1748054941426,1.57932854,663.92,663.38,2.38577376]
[1748054941627,1.57932854,663.91,663.38,2.38577376]
[1748054941827,1.57932854,663.9,663.38,2.38577376]
[1748054942028,1.57932854,663.89,663.38,2.38577376]
[1748054942221,1.57932854,663.88,663.38,2.38577376]
[1748054942521,1.57932854,663.87,663.38,2.38577376]
[1748054942725,1.57932854,663.86,663.38,2.38577376]
[1748054942925,1.57924402,663.85,663.38,2.38577376]
[1748054943125,1.57924402,663.84,663.38,2.38577376]
[1748054943323,1.57924402,663.83,663.38,2.38577376]
[1748054943626,1.09117897,663.82,663.38,2.38577376]
[1748054943824,1.09117897,663.81,663.38,2.38577376]
[1748054944029,1.09117897,663.8,663.39,1.04277376]
[1748054944225,1.09117897,663.79,663.39,1.04277376]
[1748054944428,1.50246428,664.0,663.39,1.04277376]
[1748054944629,1.57921879,663.99,663.39,1.04277376]
[1748054944928,1.57921879,663.98,663.39,1.04277376]
[1748054945125,1.57921879,663.97,663.39,1.04277376]
[1748054945327,1.57921879,663.96,663.39,1.04277376]
[1748054945530,1.57921879,663.95,663.39,1.04277376]
[1748054945726,1.57921879,663.94,663.39,1.04277376]
[1748054945930,1.57921879,663.93,663.39,1.04277376]
[1748054946125,1.57921879,663.92,663.39,1.04277376]
[1748054946325,1.57921879,663.91,663.39,1.04277376]
[1748054946526,1.09112649,663.9,663.39,1.04277376]
[1748054946730,1.57920516,663.89,663.39,1.04277376]
[1748054947027,1.57920516,663.88,663.39,1.04277376]
[1748054947225,1.57920516,663.87,663.43,1.04277376]
[1748054947425,1.57920516,663.86,663.43,1.04277376]
[1748054947630,1.57920516,663.85,663.43,1.04277376]
[1748054947825,1.57920516,663.84,663.43,1.04277376]
[1748054948129,1.57920516,663.83,663.43,1.04277376]
[1748054948330,1.09112649,663.82,663.43,1.04277376]
[1748054948528,1.09112649,663.81,663.43,1.04277376]
[1748054948733,1.09112649,663.8,663.43,1.04277376]
[1748054949033,1.09112649,663.79,663.43,1.04277376]
[1748054949232,1.50246428,663.93,663.43,1.04277376]
[1748054949432,1.57915712,663.92,663.4,1.04277376]
[1748054949627,1.57915712,663.91,663.4,1.04277376]
[1748054949832,1.57915712,663.9,663.4,1.04277376]
[1748054950032,1.57915712,663.89,663.4,1.04277376]
[1748054950234,1.57898523,663.88,663.4,1.04277376]
[1748054950433,1.57898523,663.87,663.4,1.04277376]
[1748054950634,1.57898523,663.86,663.4,1.04277376]
[1748054950834,1.57898523,663.85,663.4,1.04277376]
[1748054951034,1.57898523,663.84,663.4,1.04277376]
[1748054951234,1.57898523,663.83,663.4,1.04277376]
[1748054951435,1.090915,663.82,663.4,1.04277376]
[1748054951630,1.090915,663.81,663.4,1.04277376]
[1748054951829,1.090915,663.8,663.4,1.04277376]
[1748054952035,1.090915,663.79,663.38,2.38577376]
[1748054952230,0.30120028,664.01,663.38,2.38577376]
[1748054952431,1.57873278,664.0,663.38,2.38577376]
[1748054952640,1.57873278,663.99,663.38,2.38577376]
[1748054952834,1.57873278,663.98,663.38,2.38577376]
[1748054953031,1.57873278,663.97,663.38,2.38577376]
[1748054953233,1.57873278,663.96,663.38,2.38577376]
[1748054953432,1.57873278,663.95,663.38,2.38577376]
[1748054953634,1.57873278,663.94,663.38,2.38577376]
[1748054953835,1.57873278,663.93,663.38,2.38577376]
[1748054954038,1.57869589,663.92,663.38,2.38577376]
[1748054954234,1.57869589,663.91,663.38,2.38577376]
[1748054954438,1.57869589,663.9,663.38,2.38577376]
[1748054954632,1.57869589,663.89,663.38,2.38577376]
[1748054954933,1.57869589,663.88,663.38,2.38577376]
[1748054955133,1.57869589,663.87,663.38,2.38577376]
[1748054955337,1.57869589,663.86,663.38,2.38577376]
[1748054955539,1.57869589,663.85,663.38,2.38577376]
[1748054955740,1.57869589,663.84,663.38,1.343]
[1748054955938,1.57869589,663.83,663.38,1.343]
[1748054956138,1.09089325,663.82,663.38,1.343]
[1748054956336,1.09089325,663.81,663.38,1.343]
[1748054956638,1.09089325,663.8,663.38,1.343]
[1748054956835,1.09089325,663.79,663.38,1.343]
[1748054957039,0.30120028,664.01,663.38,1.343]
[1748054957239,1.57906356,664.0,663.38,1.343]
[1748054957439,1.57906356,663.99,663.38,1.343]
[1748054957641,1.57906493,663.98,663.38,1.343]
[1748054957941,1.57906493,663.97,663.38,1.343]
[1748054958141,1.57906493,663.96,663.38,1.343]
[1748054958342,1.57906493,663.95,663.38,1.343]
[1748054958542,1.57906493,663.94,663.38,1.343]
[1748054958735,1.57906493,663.93,663.38,1.343]
[1748054958937,1.57906493,663.92,663.38,1.343]
[1748054959244,1.57906493,663.91,663.38,1.343]
[1748054959542,1.57907211,663.9,663.38,1.343]
[1748054959741,1.57907211,663.89,663.38,1.343]
[1748054959943,1.57907211,663.88,663.38,1.343]
[1748054960141,1.57907211,663.87,663.38,1.343]
[1748054960338,1.57907211,663.86,663.38,1.343]
[1748054960543,1.57907211,663.85,663.38,1.343]
[1748054960745,1.57907211,663.84,663.38,1.343]
[1748054960948,1.57907211,663.83,663.38,1.343]
[1748054961243,1.09090482,663.82,663.38,1.343]
[1748054961444,1.09090857,663.81,663.38,1.343]
[1748054961744,1.09090857,663.8,663.38,2.38577376]
[1748054962039,1.09090857,663.79,663.38,2.38577376]
[1748054962246,1.80366456,664.01,663.38,2.38577376]
[1748054962544,1.57908814,664.0,663.38,2.38577376]
[1748054962742,1.57909629,663.99,663.38,2.38577376]
[1748054962942,1.57909629,663.98,663.38,2.38577376]
[1748054963142,1.57909629,663.97,663.38,2.38577376]
[1748054963342,1.57909629,663.96,663.38,2.38577376]
[1748054963543,1.57909629,663.95,663.38,2.38577376]
[1748054963745,1.57909629,663.94,663.38,2.38577376]
[1748054964042,1.57909629,663.93,663.38,2.38577376]
[1748054964243,1.57909629,663.92,663.38,2.38577376]
[1748054964438,1.57909629,663.91,663.38,2.38577376]
[1748054964641,1.57909629,663.9,663.39,1.04277376]
[1748054964838,1.57909629,663.89,663.39,1.04277376]
[1748054965040,1.57911187,663.88,663.39,1.04277376]
[1748054965244,1.57911187,663.87,663.39,1.04277376]
[1748054965543,1.57911187,663.86,663.39,1.04277376]
[1748054965743,1.57911187,663.85,663.39,1.04277376]
[1748054965943,1.57911187,663.84,663.39,1.04277376]
[1748054966143,1.57911187,663.83,663.39,1.04277376]
[1748054966345,1.57911187,663.82,663.39,1.04277376]
[1748054966544,1.57911187,663.81,663.39,1.04277376]
[1748054966740,1.57911187,663.8,663.39,1.04277376]
[1748054967043,1.57911187,663.79,663.39,1.04277376]
[1748054967239,1.57911187,663.78,663.39,1.04277376]
[1748054967441,1.09093567,663.77,663.39,1.04277376]
[1748054967646,1.09093567,663.76,663.39,1.04277376]
[1748054967848,1.09093567,663.75,663.27,1.04277376]
[1748054968046,1.09093567,663.74,663.27,1.04277376]
[1748054968245,1.09093567,663.73,663.27,1.04277376]
[1748054968442,0.30120028,664.01,663.27,1.04277376]
[1748054968647,1.57953245,664.0,663.27,1.04277376]
[1748054968847,1.57953245,663.99,663.27,1.04277376]
[1748054969145,1.57953245,663.98,663.27,1.04277376]
[1748054969342,1.57953245,663.97,663.27,1.04277376]
[1748054969543,1.57953245,663.96,663.27,1.04277376]
[1748054969748,1.57953245,663.95,663.27,1.04277376]
[1748054969946,1.57953245,663.94,663.27,1.04277376]
[1748054970143,1.57953245,663.93,663.27,1.04277376]
[1748054970345,1.57953245,663.92,663.28,1.654]
[1748054970650,1.57959286,663.91,663.28,1.654]
[1748054970948,1.57959286,663.9,663.28,1.654]
[1748054971149,1.57959286,663.89,663.28,1.654]
[1748054971350,1.57959286,663.88,663.28,1.654]
[1748054971548,1.57959286,663.87,663.28,1.654]
[1748054971745,1.57959286,663.86,663.28,1.654]
[1748054971948,1.57959286,663.85,663.28,1.654]
[1748054972146,1.57959286,663.84,663.28,1.654]
[1748054972347,1.57895164,663.83,663.28,1.654]
[1748054972548,1.57895164,663.82,663.28,1.654]
[1748054972748,1.57895164,663.81,663.28,1.654]
[1748054972949,1.57895164,663.8,663.28,1.654]
[1748054973153,1.57895164,663.79,663.28,1.654]
[1748054973350,1.57895164,663.78,663.28,1.654]
[1748054973545,1.57895164,663.77,663.28,1.654]
[1748054973747,1.57895164,663.76,663.28,1.654]
[1748054973947,1.57895164,663.75,663.28,1.654]
[1748054974148,1.57895164,663.74,663.28,1.654]
[1748054974347,1.57895164,663.73,663.28,1.654]
[1748054974549,1.57895164,663.72,663.28,1.654]
[1748054974750,1.09093914,663.71,663.28,1.654]
[1748054974944,1.09093914,663.7,663.28,1.654]
[1748054975148,1.09093914,663.69,663.28,1.654]
[1748054975348,1.50246428,663.86,663.28,1.654]
[1748054975553,1.57750842,663.85,663.28,1.654]
[1748054975847,1.57752474,663.84,663.28,1.654]
[1748054976051,1.57752474,663.83,663.28,1.654]
[1748054976252,1.57752474,663.82,663.28,1.654]
[1748054976554,1.57752474,663.81,663.28,1.654]
[1748054976753,1.57752474,663.8,663.28,1.654]
[1748054976951,1.57752474,663.79,663.28,1.654]
[1748054977250,1.57752474,663.78,663.28,1.654]
[1748054977450,1.57752474,663.77,663.28,1.654]
[1748054977652,1.57709688,663.76,663.28,1.654]
[1748054977853,1.57709688,663.75,663.28,1.654]
[1748054978053,1.57709688,663.74,663.28,1.654]
[1748054978253,1.57709688,663.73,663.28,1.654]
[1748054978455,1.0899023,663.72,663.28,1.654]
[1748054978656,1.0899023,663.71,663.28,1.654]
[1748054978957,1.0899023,663.7,663.28,1.654]
[1748054979151,1.0899023,663.69,663.28,1.654]
[1748054979355,1.50246428,663.89,663.28,1.654]
[1748054979652,1.50246428,663.87,663.28,1.654]
[1748054979851,1.57673874,663.86,663.28,1.654]
[1748054980056,1.57673874,663.85,663.28,1.654]
[1748054980355,1.57673874,663.84,663.28,1.654]
[1748054980661,1.57673874,663.83,663.28,1.654]
[1748054980854,1.57673874,663.82,663.28,1.654]
[1748054981055,1.57673874,663.81,663.28,1.654]
[1748054981359,1.50246428,663.87,663.28,1.654]
[1748054981360,1.57665325,663.8,663.28,1.654]
[1748054981561,1.57665325,663.79,663.28,1.654]
[1748054981757,1.57665325,663.78,663.28,1.654]
[1748054981958,1.57665325,663.77,663.28,1.654]
[1748054982255,1.57665325,663.76,663.28,1.654]
[1748054982455,1.57665325,663.75,663.28,1.654]
[1748054982660,1.57650977,663.74,663.28,1.654]
[1748054982957,1.57650977,663.73,663.28,1.654]
[1748054983156,1.57650977,663.72,663.28,1.654]
[1748054983356,1.08957926,663.71,663.28,1.654]
[1748054983556,1.08957926,663.7,663.28,1.654]
[1748054983758,1.08957926,663.69,663.28,1.654]
[1748054983961,1.08957926,663.68,663.28,1.654]
[1748054984257,0.30120028,664.01,663.28,1.654]
[1748054984462,1.57621639,664.0,663.28,1.654]
[1748054984761,1.57621639,663.99,663.28,1.654]
[1748054984956,1.57609142,663.98,663.28,1.654]
[1748054985159,1.57609142,663.97,663.28,1.654]
[1748054985359,1.57609142,663.96,663.28,1.654]
[1748054985557,1.57609142,663.95,663.28,1.654]
[1748054985758,1.57609142,663.94,663.28,1.654]
[1748054985961,1.57609142,663.93,663.28,1.654]
[1748054986158,1.57609142,663.92,663.28,1.654]
[1748054986362,1.57609142,663.91,663.28,1.654]
[1748054986565,1.57609142,663.9,663.28,1.654]
[1748054986863,1.57594567,663.89,663.28,1.654]
[1748054987062,1.57594567,663.88,663.28,1.654]
[1748054987262,1.57594567,663.87,663.28,1.654]
[1748054987462,1.57594567,663.86,663.28,1.654]
[1748054987659,1.57594567,663.85,663.28,1.654]
[1748054987863,1.57594567,663.84,663.28,1.654]
[1748054988064,1.57594567,663.83,663.28,1.654]
[1748054988258,1.57594567,663.82,663.28,1.654]
[1748054988464,1.57594567,663.81,663.28,1.654]
[1748054988665,1.57562486,663.8,663.28,1.654]
[1748054988865,1.57562486,663.79,663.28,1.654]
[1748054989066,1.57562486,663.78,663.28,1.654]
[1748054989266,1.57562486,663.77,663.28,1.654]